bitfinex/quotes_ETHUSD_20240816
["timestamp","ask_amount","ask_price","bid_price","bid_amount"]
[1723803544012,4.8037,2622.0,2621.4,3.81474]
[1723803544216,4.8037,2622.0,2621.4,3.81468]
[1723803545073,3.81388,2622.0,2621.5,3.81452]
[1723803545248,7.62784,2622.0,2621.5,3.81452]
[1723803545418,7.62787,2622.0,2621.5,3.81452]
[1723803546358,3.81404,2621.9,2621.5,3.81452]
[1723803546565,3.81404,2621.9,2621.3,6.08496]
[1723803546864,3.81404,2621.9,2621.4,3.81469]
[1723803547621,2.4235,2621.8,2621.4,3.81469]
[1723803548649,3.81388,2622.0,2621.4,3.81469]
[1723803548862,3.81406,2621.9,2621.4,3.81469]
[1723803549064,3.81406,2621.9,2621.3,8.238084]
[1723803549263,3.81406,2621.9,2621.4,3.81474]
[1723803549428,3.81469,2621.5,2621.1,2.2743]
[1723803550271,3.81535,2621.0,2620.4,0.80047361]
[1723803550469,3.81549,2620.9,2620.4,2.3882]
[1723803551007,3.81549,2620.9,2620.3,3.81626]
[1723803551169,6.06745,2621.0,2620.3,3.81626]
[1723803551370,6.06745,2621.0,2620.5,3.81604]
[1723803551665,3.81535,2621.0,2620.5,3.81604]
[1723803553179,3.81535,2621.0,2620.3,3.81626]
[1723803553180,3.81548,2620.9,2620.3,7.63247]
[1723803553462,3.81548,2620.9,2620.4,3.8162]
[1723803553672,3.81548,2620.9,2620.4,23.2462]
[1723803553879,3.81548,2620.9,2620.4,19.43]
[1723803554998,2.2567,2620.8,2620.4,19.43]
[1723803555204,2.2567,2620.8,2620.4,25.809611]
[1723803556405,3.81535,2621.0,2620.5,7.63203]
[1723803556706,6.13561,2621.1,2620.6,3.8158]
[1723803556882,6.13561,2621.1,2620.6,4.46739388]
[1723803557053,2.3204,2621.1,2620.7,3.81577]
[1723803559159,3.81504,2621.2,2620.8,3.81562]
[1723803559406,3.81504,2621.2,2620.8,4.578759]
[1723803559600,7.63019,2621.2,2620.8,0.763139]
[1723803559766,7.63019,2621.2,2620.8,19.43]
[1723803560598,3.8152,2621.1,2620.8,19.43]
[1723803560805,3.81504,2621.2,2620.8,19.43]
[1723803563781,2.4783,2621.5,2620.8,21.992517]
[1723803564190,6.293,2621.5,2621.0,3.81528]
[1723803564412,6.293,2621.5,2621.1,0.38915795]
[1723803564707,3.81477,2621.4,2621.1,0.38915795]
[1723803564903,7.62963,2621.4,2621.1,0.38915795]
[1723803565205,7.62966,2621.4,2620.9,19.43]
[1723803565797,3.81477,2621.4,2620.9,23.24545]
[1723803566203,3.81477,2621.4,2620.9,25.951558]
[1723803566520,7.62961,2621.4,2620.9,25.951558]
[1723803566723,3.81477,2621.4,2620.9,25.951558]
[1723803566916,7.6296,2621.4,2620.9,25.951558]
[1723803567305,3.81477,2621.4,2620.9,25.951558]
[1723803567507,3.81477,2621.4,2621.0,0.50892688]
[1723803569902,3.81477,2621.4,2621.0,4.32425688]
[1723803570087,3.81454,2621.6,2621.1,3.81518]
[1723803570287,3.81454,2621.6,2621.2,0.66641087]
[1723803571089,6.0987,2621.7,2621.2,0.66641087]
[1723803571479,3.8145,2621.6,2621.2,0.66641087]
[1723803571735,3.8145,2621.6,2621.1,3.81511]
[1723803572388,6.0987,2621.7,2620.8,19.43]
[1723803572389,3.81479,2621.4,2620.8,19.43]
[1723803572721,3.81498,2621.3,2620.8,19.43]
[1723803572920,3.81506,2621.2,2620.8,19.43]
[1723803574344,3.8149,2621.3,2620.8,23.24559]
[1723803574833,6.2122,2621.3,2620.8,23.24559]
[1723803575846,3.81504,2621.2,2620.8,23.24559]
[1723803577141,3.81504,2621.2,2620.9,2.3079]
[1723803577637,3.81491,2621.3,2620.9,2.3079]
[1723803579642,3.81479,2621.4,2620.9,2.3079]
[1723803579643,3.81505,2621.2,2620.9,2.3079]
[1723803579809,3.81505,2621.2,2620.8,23.24559]
[1723803581359,3.81492,2621.3,2620.8,23.24549]
[1723803581513,3.81451,2621.6,2621.0,3.8152]
[1723803581853,2.4235,2621.7,2620.9,6.388329]
[1723803581854,3.81482,2621.4,2620.9,6.388329]
[1723803582053,3.81482,2621.4,2620.9,3.81544]
[1723803582274,3.81497,2621.3,2620.8,23.24562]
[1723803583054,7.62998,2621.3,2620.8,23.24562]
[1723803583265,3.81497,2621.3,2620.8,23.24556]
[1723803584410,3.81497,2621.3,2620.9,3.81546]
[1723803585888,3.81515,2621.2,2620.8,19.43]
[1723803586038,3.89122787,2621.2,2620.8,19.43]
[1723803586541,3.89122787,2621.2,2620.6,19.43]
[1723803586776,3.81507,2621.2,2620.6,19.43]
[1723803587080,3.8154,2621.0,2620.6,23.2459]
[1723803587785,3.81525,2621.1,2620.6,23.24584]
[1723803587986,5.12525,2621.1,2620.6,23.24584]
[1723803588491,1.31,2621.1,2620.6,23.24581]
[1723803588689,3.81496,2621.3,2620.8,3.81562]
[1723803588854,3.81485,2621.4,2620.9,2.4608]
[1723803589183,6.4626,2621.6,2621.2,3.81502]
[1723803589184,1.31,2621.5,2621.2,3.81502]
[1723803589380,3.81441,2621.7,2621.3,6.22878]
[1723803589381,1.31,2621.7,2621.3,6.22878]
[1723803589583,1.31,2621.7,2621.3,2.4139]
[1723803589784,1.31,2621.5,2621.1,19.43]
[1723803590101,3.81484,2621.4,2621.1,19.43]
[1723803590738,7.62907,2621.6,2621.1,19.43]
[1723803590944,3.81461,2621.5,2621.1,19.43]
[1723803592596,3.81461,2621.5,2621.0,6.22922]
[1723803594379,7.62904,2621.6,2621.0,6.22915]
[1723803594583,3.81447,2621.6,2621.1,3.81517]
[1723803596294,3.81447,2621.6,2621.2,3.81504]
[1723803597481,3.81447,2621.6,2621.1,3.81518]
[1723803598067,2.4401,2621.4,2620.9,19.43]
[1723803598597,6.25493,2621.4,2620.9,23.24541]
[1723803598757,3.81483,2621.4,2620.9,23.24541]
[1723803599785,3.81496,2621.3,2620.9,19.43]
[1723803600008,6.21257,2621.6,2621.1,6.14012]
[1723803600204,6.21257,2621.6,2621.2,0.74666127]
[1723803600363,6.21257,2621.6,2621.1,6.14012]
[1723803602792,3.81423,2621.8,2621.1,6.14012]
[1723803602793,3.81424,2621.8,2621.2,3.81502]
[1723803602998,3.81434,2621.7,2621.2,3.81502]
[1723803603466,3.81434,2621.7,2621.2,7.62999]
[1723803603673,3.81434,2621.7,2621.2,4.810469]
[1723803604306,3.81434,2621.7,2621.2,28.055439]
[1723803604555,3.81434,2621.7,2621.2,24.240469]
[1723803604757,3.81434,2621.7,2621.3,3.81488]
[1723803606269,3.81434,2621.7,2621.2,20.425499]
[1723803606600,3.81434,2621.7,2621.2,24.240499]
[1723803606856,7.62876,2621.7,2621.2,24.240499]
[1723803607152,2.4224,2621.6,2621.2,19.43]
[1723803607531,3.81461,2621.5,2621.2,19.43]
[1723803608861,3.81442,2621.7,2621.2,23.24503]
[1723803609154,3.81442,2621.7,2621.2,25.59883]
[1723803609301,7.62881,2621.7,2621.2,25.59883]
[1723803609956,1.309,2621.6,2621.2,25.59883]
[1723803610459,5.12346,2621.6,2621.2,6.16883]
[1723803610636,1.309,2621.6,2621.2,6.16883]
[1723803611761,3.81375,2622.1,2621.1,19.43]
[1723803611762,7.38314,2622.5,2621.9,2.4175]
[1723803611917,1.309,2622.5,2622.0,3.81387]
[1723803612279,5.12215,2622.5,2622.1,3.81372]
[1723803612410,5.12215,2622.5,2622.0,3.81387]
[1723803613214,3.81266,2622.9,2622.2,2.4355]
[1723803613516,3.81288,2622.7,2622.2,6.24899]
[1723803613824,2.54745787,2622.6,2621.9,6.24952]
[1723803614025,3.81346,2622.3,2621.8,3.81407]
[1723803614523,3.81346,2622.3,2621.7,6.24979]
[1723803614729,3.81376,2622.1,2621.7,2.4355]
[1723803614965,3.81376,2622.1,2621.5,2.2565]
[1723803615258,3.81417,2621.8,2621.3,6.07138]
[1723803615418,3.8141,2621.9,2621.4,3.81473]
[1723803615618,3.8141,2621.9,2621.5,0.607123]
[1723803616485,3.8141,2621.9,2621.3,6.07137]
[1723803616701,3.8141,2621.9,2621.4,3.81475]
[1723803616988,3.81354,2622.3,2621.7,2.4931]
[1723803617186,3.81354,2622.3,2621.8,0.24931]
[1723803617345,3.81359,2622.2,2621.7,6.30734]
[1723803618389,3.81374,2622.1,2621.7,2.4931]
[1723803619091,0.619884,2622.2,2621.7,2.4931]
[1723803619092,4.433474,2622.2,2621.7,2.4931]
[1723803619398,3.81359,2622.2,2621.7,21.9231]
[1723803620481,3.81354,2622.3,2621.7,21.9231]
[1723803620482,3.81376,2622.1,2621.7,21.9231]
[1723803621475,3.81376,2622.1,2621.7,19.43]
[1723803622490,3.81359,2622.2,2621.7,19.43]
[1723803622781,3.81359,2622.2,2621.7,23.24424]
[1723803622984,3.81353,2622.3,2621.9,2.3617]
[1723803624794,7.62708,2622.3,2621.9,2.3617]
[1723803625291,3.81369,2622.2,2621.8,19.43]
[1723803625505,4.576412,2622.2,2621.8,19.43]
[1723803625687,3.81375,2622.1,2621.8,19.43]
[1723803625855,3.81402,2621.9,2621.8,19.43]
[1723803627343,7.62804,2621.9,2621.8,19.43]
[1723803627636,8.17804,2621.9,2621.8,19.43]
[1723803627808,9.233594,2621.9,2621.8,19.43]
[1723803627992,3.8145,2621.6,2621.3,2.2591]
[1723803629423,3.81424,2621.8,2621.3,2.2591]
[1723803629749,3.81424,2621.8,2621.3,6.07389]
[1723803630609,7.62852,2621.8,2621.3,2.2591]
[1723803630797,3.81424,2621.8,2621.3,2.2591]
[1723803631156,3.81439,2621.7,2621.2,23.24493]
[1723803631456,3.81421,2621.8,2621.3,6.07398]
[1723803631800,3.81421,2621.8,2621.3,9.88881]
[1723803632000,3.81421,2621.8,2621.3,6.07393]
[1723803632215,3.81421,2621.8,2621.4,2.550393]
[1723803633230,3.81421,2621.8,2621.3,6.07392]
[1723803633724,3.81434,2621.7,2621.3,2.2591]
[1723803633923,3.81434,2621.7,2621.2,19.43]
[1723803634801,3.81434,2621.7,2621.2,23.24497]
[1723803635055,3.81421,2621.8,2621.3,3.81485]
[1723803635447,3.81421,2621.8,2621.4,3.81475]
[1723803638015,10.00519,2622.1,2621.6,3.81444]
[1723803638235,6.19133,2622.1,2621.7,3.81428]
[1723803638401,3.81354,2622.3,2621.8,3.81402]
[1723803638600,6.2916,2622.4,2621.9,3.81394]
[1723803638840,3.8133,2622.4,2621.9,3.81394]
[1723803639342,3.8133,2622.4,2622.0,3.81387]
[1723803639639,6.29139,2622.6,2622.1,3.81372]
[1723803639866,3.81316,2622.5,2622.1,3.81372]
[1723803640018,3.81316,2622.5,2621.9,3.81388]
[1723803640194,3.81316,2622.5,2622.0,3.8138]
[1723803641652,3.81302,2622.6,2622.1,6.26563]
[1723803642001,3.81249,2623.0,2622.5,3.81307]
[1723803642141,3.81249,2623.0,2622.4,3.81322]
[1723803642345,2.745149,2623.0,2622.3,19.43]
[1723803642639,3.81295,2622.7,2622.3,19.43]
[1723803643350,3.81267,2622.9,2622.3,19.43]
[1723803643351,3.81272,2622.8,2622.3,19.43]
[1723803643550,3.81272,2622.8,2622.3,22.01847188]
[1723803643751,7.62538,2622.9,2622.3,25.83178188]
[1723803644048,3.81276,2622.8,2622.3,25.83178188]
[1723803644591,3.81266,2622.9,2622.4,3.81329]
[1723803644889,3.81266,2622.9,2622.4,4.439853]
[1723803645403,3.81266,2622.9,2622.4,8.253143]
[1723803645548,3.81235,2623.1,2622.6,3.81298]
[1723803646545,3.81235,2623.1,2622.6,7.62591]
[1723803646877,7.62421,2623.3,2622.7,3.81282]
[1723803647178,7.62421,2623.3,2622.6,6.40139188]
[1723803647179,3.81229,2623.1,2622.6,6.40147188]
[1723803647949,3.81229,2623.1,2622.6,3.813]
[1723803648153,7.62468,2623.1,2622.6,3.813]
[1723803648372,3.00835787,2623.0,2622.4,19.43]
[1723803648550,3.8131,2622.6,2622.4,19.43]
[1723803648950,3.8131,2622.6,2622.2,7.33]
[1723803649566,3.81295,2622.7,2622.2,7.33]
[1723803649789,3.81295,2622.7,2622.2,11.14347]
[1723803651398,3.81268,2622.9,2622.4,2.3004]
[1723803651550,3.81247,2623.0,2622.5,3.81313]
[1723803654092,3.81247,2623.0,2622.5,7.62621]
[1723803654283,3.81247,2623.0,2622.5,3.81308]
[1723803654478,3.81247,2623.0,2622.5,4.9401894]
[1723803655099,3.81239,2623.1,2622.5,8.7532594]
[1723803655396,3.81242,2623.0,2622.5,4.9401894]
[1723803655595,3.81239,2623.1,2622.4,6.11369]
[1723803655894,3.81264,2622.9,2622.4,6.11369]
[1723803658406,3.81264,2622.9,2622.5,3.81315]
[1723803658956,3.81264,2622.9,2622.4,6.11369]
[1723803660407,3.81264,2622.9,2622.5,3.81314]
[1723803660561,3.81264,2622.9,2622.4,7.839382]
[1723803660764,3.81264,2622.9,2622.4,27.269382]
[1723803662315,7.62479,2623.1,2622.5,3.81314]
[1723803662482,3.81237,2623.1,2622.6,23.24292]
[1723803662812,2.4241,2623.2,2622.7,3.81282]
[1723803662813,3.81214,2623.2,2622.7,3.81282]
[1723803663121,3.81231,2623.1,2622.8,4.011702]
[1723803663410,3.81243,2623.0,2622.6,25.52899]
[1723803664410,3.81243,2623.0,2622.6,23.24299]
[1723803664767,7.59048,2623.1,2622.6,23.24293]
[1723803664965,7.59048,2623.1,2622.7,2.324293]
[1723803666933,7.59048,2623.1,2622.7,21.754293]
[1723803667132,5.12028,2623.1,2622.7,21.754293]
[1723803667633,3.81214,2623.2,2622.8,2.2804]
[1723803667941,3.81214,2623.2,2622.8,3.17114188]
[1723803668126,3.81199,2623.3,2622.8,6.98385188]
[1723803668273,3.81199,2623.3,2622.9,2.324293]
[1723803668472,5.11999,2623.3,2622.9,2.324293]
[1723803668772,8.93209,2623.3,2622.9,2.324293]
[1723803668967,5.11999,2623.3,2622.9,2.324293]
[1723803669164,5.11999,2623.3,2623.0,0.8417403]
[1723803670585,1.308,2623.3,2623.0,0.8417403]
[1723803671116,5.12,2623.3,2623.0,0.8417403]
[1723803671313,5.12,2623.3,2622.7,19.43]
[1723803671658,3.81248,2623.0,2622.7,19.43]
[1723803671826,3.81259,2622.9,2622.7,19.43]
[1723803672112,3.81322,2622.5,2622.2,9.7069]
[1723803673287,3.8131,2622.6,2622.2,9.7069]
[1723803673921,3.81297,2622.7,2622.2,9.7069]
[1723803674124,3.81301,2622.6,2622.2,9.7069]
[1723803674276,3.81303,2622.6,2622.2,9.7069]
[1723803674472,3.81328,2622.5,2622.2,7.33]
[1723803674671,3.81402,2622.0,2621.8,7.33]
[1723803674904,3.81402,2622.0,2621.7,19.43]
[1723803674905,3.81399,2622.0,2621.7,19.43]
[1723803675103,3.81388,2622.0,2621.7,19.43]
[1723803676433,3.81403,2621.9,2621.7,19.43]
[1723803676728,3.81388,2622.0,2621.7,19.43]
[1723803677291,7.62788,2622.0,2621.7,19.43]
[1723803677504,3.81403,2621.9,2621.7,19.43]
[1723803677804,3.81417,2621.8,2621.7,19.43]
[1723803678012,3.81402,2621.9,2621.7,19.43]
[1723803678581,3.81402,2621.9,2621.4,32.94265]
[1723803678792,3.814,2622.0,2621.5,3.81459]
[1723803679175,3.81354,2622.3,2621.7,3.8143]
[1723803679380,3.81354,2622.3,2621.8,2.2744]
[1723803679581,7.62708,2622.3,2621.8,2.2744]
[1723803680392,3.81366,2622.2,2621.8,2.2744]
[1723803680592,3.8139,2622.0,2621.6,2.4277]
[1723803681977,3.81377,2622.1,2621.6,2.4277]
[1723803682183,3.81377,2622.1,2621.6,6.2421]
[1723803683399,3.8139,2622.0,2621.6,2.4277]
[1723803683595,3.81377,2622.1,2621.6,2.4277]
[1723803683596,3.81405,2621.9,2621.6,2.4277]
[1723803684140,7.62819,2621.9,2621.4,30.57471]
[1723803684306,3.81418,2621.8,2621.4,30.57471]
[1723803684728,3.81418,2621.8,2621.4,23.24471]
[1723803686230,6.0752,2622.0,2621.2,19.43]
[1723803686231,3.81455,2621.6,2621.2,19.43]
[1723803686415,7.62932,2621.5,2621.2,19.43]
[1723803686596,3.81475,2621.4,2621.2,19.43]
[1723803687903,3.8149,2621.3,2621.2,19.43]
[1723803689748,10.1049,2621.3,2621.2,19.43]
[1723803689957,6.29,2621.3,2620.7,21.8353]
[1723803690103,3.81526,2621.1,2620.7,19.43]
[1723803690305,6.29072,2620.8,2620.2,6.22171]
[1723803690546,6.29072,2620.8,2620.1,26.76]
[1723803690547,3.89206787,2620.7,2620.1,26.76]
[1723803690747,3.81596,2620.6,2620.1,26.76]
[1723803691103,3.81596,2620.6,2620.1,30.57664]
[1723803691404,3.81596,2620.6,2620.1,26.76]
[1723803691816,3.81596,2620.6,2620.1,19.43]
[1723803692174,10.10656,2620.8,2620.2,3.81648]
[1723803692321,6.29053,2621.0,2620.3,2.324648]
[1723803692521,0.55,2620.9,2620.3,2.324648]
[1723803693322,3.8157,2620.8,2620.3,2.324648]
[1723803693835,0.55,2620.9,2620.3,6.140988]
[1723803694163,4.36553,2620.9,2620.3,6.140988]
[1723803694462,3.81565,2620.8,2620.3,2.324648]
[1723803694663,0.55,2620.9,2620.2,3.81639]
[1723803694861,0.55,2620.9,2620.3,3.81626]
[1723803695164,3.81564,2620.8,2620.2,3.81639]
[1723803695328,3.81564,2620.8,2620.2,10.197969]
[1723803695537,3.81564,2620.8,2620.2,6.381559]
[1723803695935,7.63135,2620.8,2620.2,6.381559]
[1723803696636,7.63135,2620.8,2620.2,25.811559]
[1723803696817,7.63135,2620.8,2620.2,23.24639]
[1723803697479,7.63136,2620.8,2620.2,23.24639]
[1723803697639,3.81564,2620.8,2620.2,23.24639]
[1723803697827,7.63136,2620.8,2620.2,23.24639]
[1723803698027,3.81564,2620.8,2620.2,23.24639]
[1723803698251,7.63139,2620.8,2620.2,23.24639]
[1723803698822,3.81564,2620.8,2620.2,23.24639]
[1723803699023,7.63135,2620.8,2620.2,23.24639]
[1723803699266,3.81564,2620.8,2620.2,23.24639]
[1723803700133,3.81592,2620.6,2620.2,19.43]
[1723803700341,6.20401,2620.5,2620.2,19.43]
[1723803700758,3.81635,2620.3,2620.2,19.43]
[1723803700970,7.6327,2620.3,2620.2,19.43]
[1723803701910,3.81635,2620.3,2620.2,19.43]
[1723803702466,3.81635,2620.3,2619.8,26.76]
[1723803702760,3.81635,2620.3,2619.8,30.57702]
[1723803704027,3.81624,2620.4,2619.9,3.81692]
[1723803704228,7.50554,2620.9,2619.9,2.3823]
[1723803704229,6.06847,2620.7,2619.9,2.3823]
[1723803704531,3.81593,2620.6,2620.1,3.81661]
[1723803704979,6.06839,2620.7,2620.1,3.81657]
[1723803705269,3.81564,2620.8,2620.2,0.381657]
[1723803705501,3.81579,2620.7,2620.2,0.381657]
[1723803705712,2.3694,2620.5,2619.9,3.81679]
[1723803706564,6.18547,2620.5,2620.0,3.8167]
[1723803706792,6.18547,2620.5,2619.9,3.8168]
[1723803707002,6.18547,2620.5,2620.0,3.8167]
[1723803707154,2.3694,2620.5,2620.0,3.8167]
[1723803707584,2.3694,2620.5,2620.1,3.81664]
[1723803708297,3.81578,2620.7,2620.2,3.81647]
[1723803708505,6.23372,2620.8,2620.3,3.81625]
[1723803708654,3.81578,2620.7,2620.2,4.198164]
[1723803709195,10.04946,2620.8,2620.2,4.198164]
[1723803709492,6.23371,2620.8,2620.3,3.81632]
[1723803709906,3.81577,2620.7,2620.3,3.81632]
[1723803710564,3.81577,2620.7,2620.2,0.381664]
[1723803710759,3.81593,2620.6,2620.2,0.381664]
[1723803710965,3.81593,2620.6,2620.0,19.43]
[1723803711165,3.81622,2620.4,2620.0,19.43]
[1723803712604,3.81622,2620.4,2620.0,23.24679]
[1723803712788,3.81593,2620.6,2620.1,3.81664]
[1723803713476,3.81593,2620.6,2620.1,3.81654]
[1723803715165,2.418,2620.8,2620.1,3.81654]
[1723803715366,0.55,2620.7,2620.1,6.522878]
[1723803715584,6.29651,2621.1,2620.5,3.81598]
[1723803716204,3.81549,2620.9,2620.5,3.81598]
[1723803716581,3.81549,2620.9,2620.4,3.8162]
[1723803717917,3.81549,2620.9,2620.3,3.81626]
[1723803718218,3.8157,2620.8,2620.3,3.81626]
[1723803719219,3.81578,2620.7,2620.3,3.81626]
[1723803720429,3.81578,2620.7,2620.3,23.24626]
[1723803720604,6.30708,2620.7,2620.3,19.43]
[1723803721432,3.81569,2620.8,2620.3,19.43]
[1723803721740,3.81569,2620.8,2620.4,1.943]
[1723803722533,3.81578,2620.7,2620.4,1.943]
[1723803722817,3.81578,2620.7,2620.3,23.24635]
[1723803724089,3.81578,2620.7,2620.3,19.43]
[1723803726693,0.07615787,2620.8,2620.3,19.43]
[1723803726910,3.81613,2620.5,2620.3,19.43]
[1723803727319,3.81621,2620.4,2620.3,19.43]
[1723803729696,3.81621,2620.4,2619.6,7.33]
[1723803729697,3.81686,2620.0,2619.6,7.33]
[1723803729899,2.3072,2620.3,2619.4,19.43]
[1723803729900,2.3072,2619.8,2619.4,19.43]
[1723803730111,2.3072,2620.0,2619.4,19.43]
[1723803730312,6.124,2620.0,2619.5,6.27499]
[1723803730729,3.81695,2619.9,2619.5,2.4575]
[1723803730895,3.81695,2619.9,2619.4,19.43]
[1723803731142,3.81708,2619.8,2619.4,19.43]
[1723803731928,3.81695,2619.9,2619.4,23.24764]
[1723803732863,7.63402,2619.9,2619.4,23.24764]
[1723803733173,3.81695,2619.9,2619.4,23.24764]
[1723803733544,3.81695,2619.9,2619.4,3.81764]
[1723803733745,3.8173,2619.7,2619.2,6.27545]
[1723803734651,3.8173,2619.7,2619.3,1.32733028]
[1723803735000,3.81738,2619.6,2619.2,2.4575]
[1723803735272,3.81738,2619.6,2619.1,23.2481]
[1723803735444,3.81738,2619.6,2619.2,1.32740477]
[1723803735629,3.207468,2619.6,2619.1,23.2481]
[1723803735829,2.444,2619.6,2619.1,23.2481]
[1723803736259,3.81767,2619.4,2619.1,19.43]
[1723803736431,3.81768,2619.4,2618.9,19.43]
[1723803736644,3.81807,2619.2,2618.9,19.43]
[1723803736849,6.26207,2619.2,2618.7,7.33]
[1723803737070,3.81819,2619.1,2618.7,7.33]
[1723803737762,3.81827,2619.0,2618.7,7.33]
[1723803738229,6.26207,2619.2,2618.7,7.33]
[1723803738729,3.81776,2619.4,2618.7,11.14867]
[1723803738931,3.81776,2619.4,2618.8,6.31174]
[1723803739234,3.81776,2619.4,2618.9,3.81831]
[1723803741252,3.81776,2619.4,2618.9,7.63663]
[1723803741452,3.81776,2619.4,2618.9,3.81831]
[1723803741836,3.81788,2619.3,2618.8,2.4933]
[1723803742035,3.81788,2619.3,2618.8,6.31183]
[1723803742737,2.2554,2619.2,2618.7,11.14857]
[1723803742939,2.2554,2619.2,2618.8,3.81853]
[1723803743774,2.2554,2619.2,2618.8,3.81845]
[1723803745360,6.09908,2619.5,2618.9,6.16018]
[1723803745557,9.91617,2619.7,2618.9,2.3418]
[1723803745857,6.0948,2620.0,2619.4,7.63521]
[1723803746183,2.2779,2620.0,2619.7,3.81715]
[1723803746402,2.2779,2620.2,2619.7,3.81715]
[1723803746697,3.81631,2620.4,2619.9,3.81686]
[1723803746855,3.81636,2620.3,2619.7,3.81712]
[1723803747056,3.81636,2620.3,2619.7,7.63427]
[1723803747257,3.81636,2620.3,2619.7,4.198832]
[1723803747460,3.81636,2620.3,2619.7,8.015982]
[1723803747862,3.81651,2620.2,2619.7,4.198832]
[1723803748048,3.81666,2620.1,2619.5,3.81738]
[1723803748249,3.81651,2620.2,2619.6,3.81728]
[1723803749143,3.81687,2620.0,2619.5,3.81738]
[1723803749346,3.81695,2619.9,2619.4,23.24766]
[1723803749756,3.81695,2619.9,2619.4,19.43]
[1723803749963,3.81695,2619.9,2619.5,19.43]
[1723803750678,6.09468,2620.1,2619.5,23.24751]
[1723803750898,0.55,2620.0,2619.5,25.572191]
[1723803751105,3.81628,2620.4,2619.6,2.54614684]
[1723803751273,3.81628,2620.4,2619.8,3.81701]
[1723803751720,7.63262,2620.4,2619.8,3.81701]
[1723803752015,2.2779,2620.5,2619.9,3.81685]
[1723803752190,3.81601,2620.6,2620.0,3.81672]
[1723803752383,4.36607,2620.5,2620.0,3.81672]
[1723803753719,3.81595,2620.6,2620.1,3.81651]
[1723803754412,4.806907,2620.6,2620.1,3.81651]
[1723803754788,4.806907,2620.6,2619.7,23.24714]
[1723803754789,0.990957,2620.6,2619.7,23.24714]
[1723803754992,6.30073,2620.3,2619.7,27.06427]
[1723803755175,6.30073,2620.3,2619.7,23.24713]
[1723803755574,3.81665,2620.1,2619.7,19.43]
[1723803756924,3.81665,2620.1,2619.7,23.24722]
[1723803758213,3.81665,2620.1,2619.7,19.43]
[1723803758371,3.81691,2620.0,2619.7,19.43]
[1723803758575,0.763356,2619.9,2619.5,3.81739]
[1723803758818,3.81691,2620.0,2619.5,3.81739]
[1723803759116,3.81665,2620.1,2619.5,3.81739]
[1723803759320,6.30074,2620.3,2619.8,3.81698]
[1723803759501,3.81602,2620.6,2619.9,4.807819]
[1723803759502,3.81623,2620.4,2619.9,4.807819]
[1723803759690,3.81623,2620.4,2619.9,3.81684]
[1723803761887,3.81623,2620.4,2619.9,7.63369]
[1723803762081,3.81623,2620.4,2619.9,3.81684]
[1723803763525,6.30682,2620.6,2620.0,3.81678]
[1723803763526,3.81606,2620.5,2620.0,3.81678]
[1723803764352,3.81565,2620.8,2620.3,3.81623]
[1723803764481,2.388,2620.9,2620.3,23.32254813]
[1723803764681,6.20355,2620.9,2620.4,3.81613]
[1723803765021,6.20355,2620.9,2620.3,23.32254813]
[1723803765022,3.81563,2620.8,2620.3,23.24625]
[1723803765391,3.81563,2620.8,2620.4,3.81619]
[1723803766318,3.81544,2621.0,2620.5,3.81599]
[1723803766618,3.81555,2620.9,2620.4,4.86060488]
[1723803767422,6.12875,2621.2,2620.5,2.17056]
[1723803767583,3.81524,2621.1,2620.6,7.63167]
[1723803768016,9.94392,2621.2,2620.6,3.81583]
[1723803768213,3.81528,2621.1,2620.6,3.81583]
[1723803768846,3.81534,2621.0,2620.6,3.81583]
[1723803771455,3.81519,2621.1,2620.6,3.81583]
[1723803773664,3.81536,2621.0,2620.5,19.43]
[1723803773847,3.81536,2621.0,2620.5,23.24603]
[1723803776033,7.6308,2621.0,2620.5,23.24603]
[1723803777268,3.81536,2621.0,2620.5,23.24603]
[1723803780030,7.63078,2621.0,2620.5,23.24603]
[1723803780487,7.63077,2621.0,2620.5,23.24603]
[1723803781540,3.81536,2621.0,2620.5,23.24603]
[1723803782231,7.6308,2621.0,2620.5,23.24603]
[1723803782436,0.07615787,2620.9,2620.5,19.43]
[1723803782685,3.81585,2620.7,2620.5,19.43]
[1723803782987,3.81592,2620.6,2620.5,19.43]
[1723803783952,3.81565,2620.8,2620.5,19.43]
[1723803784917,3.81578,2620.7,2620.5,19.43]
[1723803785809,3.81578,2620.7,2620.3,26.76]
[1723803787080,7.63163,2620.7,2620.3,26.76]
[1723803787916,3.81578,2620.7,2620.3,26.76]
[1723803788563,7.63168,2620.7,2620.3,26.76]
[1723803788768,3.81578,2620.7,2620.3,26.76]
[1723803791222,7.63169,2620.7,2620.3,26.76]
[1723803791510,3.81578,2620.7,2620.3,26.76]
[1723803791709,3.81578,2620.7,2620.3,19.43]
[1723803791911,3.81593,2620.6,2620.3,19.43]
[1723803792207,3.81608,2620.5,2620.3,19.43]
[1723803792628,3.8162,2620.5,2620.3,19.43]
[1723803792933,3.81621,2620.4,2620.3,19.43]
[1723803793130,6.09026,2620.6,2620.3,19.43]
[1723803793131,3.81607,2620.5,2620.3,19.43]
[1723803797846,3.81607,2620.5,2620.1,19.43]
[1723803801350,3.81629,2620.4,2620.1,19.43]